bitfinex/quotes_ETHUSD_20250602
["timestamp","ask_amount","ask_price","bid_price","bid_amount"]
[1748871496153,0.02,2514.9,2514.8,18.39545936]
[1748871496296,0.02,2514.9,2514.8,19.15225936]
[1748871497188,0.02,2514.9,2514.8,14.07925936]
[1748871497535,0.02,2514.9,2514.8,18.62625936]
[1748871497736,0.02,2514.9,2514.8,19.17625936]
[1748871498787,0.02,2514.9,2514.8,19.17425936]
[1748871499812,0.02,2514.9,2514.8,29.4314275]
[1748871500121,0.02,2514.9,2514.8,13.28325936]
[1748871500327,0.02,2514.9,2514.8,19.17125936]
[1748871500827,0.15620539,2515.2,2514.8,19.17125936]
[1748871500828,0.15620539,2515.2,2515.1,5.35148505]
[1748871501014,0.15620539,2515.2,2515.1,23.23548505]
[1748871501217,0.15620539,2515.2,2515.1,33.49265319]
[1748871501692,0.15620539,2515.2,2515.1,18.85625724]
[1748871502031,0.15620539,2515.2,2515.1,19.39225724]
[1748871503722,0.02,2515.9,2515.8,4.52487876]
[1748871503905,0.02,2515.9,2515.8,17.05987876]
[1748871504231,0.02,2515.9,2515.8,17.2196065]
[1748871505095,0.02,2515.9,2515.8,12.6846065]
[1748871505295,0.02,2515.9,2515.8,18.0116065]
[1748871505518,0.02,2515.9,2515.8,18.0156065]
[1748871505828,0.02,2515.9,2515.8,10.0186065]
[1748871506939,0.02,2515.9,2515.8,10.0176065]
[1748871507512,0.02,2515.9,2515.8,5.4796065]
[1748871507835,0.02,2515.9,2515.8,10.0166065]
[1748871508049,0.02,2515.9,2515.8,1.50472774]
[1748871508202,0.02,2515.9,2515.8,10.05435049]
[1748871508533,0.02,2515.9,2515.8,6.03972774]
[1748871508734,0.02,2515.9,2515.8,0.15972774]
[1748871509324,5.30999413,2515.9,2515.8,0.15972774]
[1748871510020,1.33527336,2515.9,2515.8,0.15972774]
[1748871510225,5.30999413,2515.9,2515.8,0.15972774]
[1748871510612,0.8531,2515.9,2515.8,0.15972774]
[1748871511629,0.02,2515.9,2515.8,4.72435533]
[1748871511803,0.7776,2516.3,2516.2,3.97424688]
[1748871512406,0.7776,2516.3,2516.0,3.97449234]
[1748871512614,0.7776,2516.3,2516.1,3.97440451]
[1748871512816,0.7776,2516.3,2515.8,6.02972774]
[1748871513021,0.7776,2516.3,2516.2,3.97424688]
[1748871513250,0.7776,2516.3,2515.9,1.00047551]
[1748871513434,0.7776,2516.3,2515.8,4.13452063]
[1748871513635,0.7776,2516.3,2515.9,5.863]
[1748871513953,4.75177881,2516.3,2515.9,5.863]
[1748871514339,4.75177881,2516.3,2515.9,1.345]
[1748871514553,3.97450115,2516.1,2515.9,1.345]
[1748871514755,0.7539,2516.3,2515.9,1.345]
[1748871514915,3.97472077,2515.9,2515.8,0.15972774]
[1748871515315,4.74642077,2515.9,2515.8,0.15972774]
[1748871516873,3.79245093,2515.9,2515.8,0.15972774]
[1748871517017,0.7717,2515.9,2515.8,0.15972774]
[1748871517218,4.74642077,2515.9,2515.8,0.15972774]
[1748871517567,5.61851206,2515.9,2515.8,0.15972774]
[1748871517775,15.8756802,2515.9,2515.8,0.15972774]
[1748871518356,5.61851206,2515.9,2515.8,0.15972774]
[1748871519033,4.74642077,2515.9,2515.8,0.15972774]
[1748871524468,0.8199,2515.0,2514.5,4.507]
[1748871524655,0.8199,2515.6,2514.6,4.01647699]
[1748871524857,3.9756704,2515.3,2514.8,3.97644025]
[1748871525171,3.9756689,2515.3,2514.9,0.39764403]
[1748871525334,3.97607291,2515.1,2514.5,4.507]
[1748871525657,3.97607291,2515.1,2514.6,9.82670057]
[1748871525883,0.8199,2515.6,2514.7,5.824]
[1748871526109,3.97592351,2515.2,2514.7,5.824]
[1748871526264,3.97612199,2515.1,2514.7,5.824]
[1748871526451,3.97589558,2515.2,2514.7,10.78064067]
[1748871526645,3.97608452,2515.1,2514.7,6.80408992]
[1748871526846,3.97587006,2515.2,2514.7,10.7806072]
[1748871527059,3.97538331,2515.5,2514.9,3.97619819]
[1748871527307,3.97584996,2515.2,2514.8,3.97636923]
[1748871527590,3.9754856,2515.5,2515.0,3.97612623]
[1748871527948,3.97561193,2515.4,2515.0,3.97610568]
[1748871528166,3.97488857,2515.8,2514.9,5.73593412]
[1748871528367,3.97507002,2515.7,2514.9,1.75968583]
[1748871528586,3.97573346,2515.3,2514.9,0.97458583]
[1748871528751,3.97605298,2515.1,2514.9,0.97458583]
[1748871529084,4.37272189,2515.6,2514.7,1.321]
[1748871529085,3.97617188,2515.0,2514.7,1.321]
[1748871529386,0.8057,2515.3,2514.7,5.812]
[1748871529387,3.97631443,2514.9,2514.7,5.812]
[1748871529583,4.78136923,2515.3,2514.4,3.97701008]
[1748871529784,3.97622596,2515.0,2514.5,9.78692413]
[1748871529986,0.8057,2515.3,2514.6,1.38037005]
[1748871530163,3.97611982,2515.1,2514.6,3.97669317]
[1748871530348,3.97582697,2515.2,2514.5,5.81]
[1748871530544,0.8057,2515.3,2514.6,3.97672807]
[1748871530804,4.7814332,2515.3,2514.8,3.97635182]
[1748871531102,0.7983,2515.6,2514.9,0.85675858]
[1748871531391,4.77302522,2515.9,2515.4,3.97540045]
[1748871531592,4.77302522,2515.9,2515.5,8.46134273]
[1748871531799,3.97464986,2516.0,2515.5,8.46134273]
[1748871532091,3.97373768,2516.6,2515.6,0.03975036]
[1748871532306,3.97399859,2516.4,2515.7,3.97492628]
[1748871532452,3.9740631,2516.4,2515.8,3.97478995]
[1748871532652,3.9740631,2516.4,2515.9,3.97471241]
[1748871532895,3.97385139,2516.5,2516.0,4.484]
[1748871533208,3.97408894,2516.3,2516.0,4.484]
[1748871533404,3.97408894,2516.3,2515.2,0.55]
[1748871533405,3.97528022,2515.6,2515.2,1.321]
[1748871533619,3.9748385,2515.9,2515.3,3.97556549]
[1748871533821,0.7983,2516.3,2515.4,4.01524603]
[1748871534129,3.97490155,2515.8,2515.3,3.97562994]
[1748871534413,0.91956851,2516.2,2515.1,0.817]
[1748871534573,3.97466455,2516.0,2515.4,5.807]
[1748871534773,3.97503925,2515.7,2515.4,5.805]
[1748871535480,4.80425717,2515.8,2515.3,9.77965913]
[1748871535675,3.97510874,2515.7,2515.3,5.804]
[1748871535876,3.97548231,2515.5,2515.3,1.321]
[1748871536205,1.70720346,2515.8,2515.3,1.321]
[1748871536206,3.97525237,2515.6,2515.3,1.321]
[1748871536377,0.8293,2515.8,2515.4,3.97541977]
[1748871536578,0.7722,2516.1,2515.5,3.97535281]
[1748871536780,0.7722,2516.1,2515.8,3.97487713]
[1748871537014,4.74663147,2516.1,2515.7,4.484]
[1748871537203,3.97420144,2516.3,2515.7,4.484]
[1748871537404,0.7838,2516.4,2515.8,3.97480908]
[1748871537575,3.97420886,2516.3,2515.8,3.97474172]
[1748871537769,0.7838,2516.4,2515.9,3.97460501]
[1748871537770,4.75775288,2516.4,2515.9,3.97460501]
[1748871538299,3.97378483,2516.5,2516.0,3.97448064]
[1748871538505,0.8258,2516.7,2515.9,0.7672]
[1748871538693,0.8258,2516.7,2516.1,1.321]
[1748871538882,3.97389199,2516.5,2516.2,4.482]
[1748871539083,4.79931121,2516.7,2516.2,4.482]
[1748871539290,0.47993112,2516.6,2516.2,4.482]
[1748871539504,3.97366697,2516.6,2516.2,4.482]
[1748871539820,0.8258,2516.7,2516.0,3.97449888]
[1748871540014,0.8258,2516.7,2516.0,4.478]
[1748871540216,3.97365946,2516.6,2516.1,3.97432821]
[1748871540417,3.97365946,2516.6,2516.0,5.2691]
[1748871540418,4.79931774,2516.7,2516.0,9.24351631]
[1748871540597,0.02,2516.9,2516.1,0.57499125]
[1748871540780,0.02,2516.9,2516.2,0.55]
[1748871540982,0.02,2516.9,2516.8,3.97329942]
[1748871541182,0.02,2516.9,2516.8,11.11979942]
[1748871541422,0.02,2516.9,2516.8,20.49948392]
[1748871541625,2.2708327,2517.2,2517.1,5.35382587]
[1748871541828,2.2708327,2517.2,2517.1,23.62812333]
[1748871542028,2.2708327,2517.2,2517.1,23.58841387]
[1748871542197,2.2708327,2517.2,2517.1,29.39641387]
[1748871542523,2.2708327,2517.2,2517.1,29.97140512]
[1748871542922,2.2708327,2517.2,2517.1,13.92881712]
[1748871543129,2.2708327,2517.2,2517.1,7.24981712]
[1748871543424,2.2708327,2517.2,2517.1,10.61182587]
[1748871543725,2.2708327,2517.2,2517.1,6.12482587]
[1748871544028,2.2708327,2517.2,2516.6,8.586]
[1748871544247,2.2708327,2517.2,2516.7,6.636]
[1748871544391,2.2708327,2517.2,2516.8,3.97329942]
[1748871544589,2.2708327,2517.2,2517.0,3.97288012]
[1748871544887,2.2708327,2517.2,2517.0,4.484]
[1748871545089,2.2708327,2517.2,2516.7,0.831]
[1748871545331,2.2708327,2517.2,2516.8,5.804]
[1748871545545,2.2708327,2517.2,2517.1,3.97282587]
[1748871545841,2.2708327,2517.2,2517.1,13.36254936]
[1748871546145,2.2708327,2517.2,2517.1,14.64382587]
[1748871546449,2.2708327,2517.2,2517.1,6.09382587]
[1748871546752,2.2708327,2517.2,2517.1,10.58282587]
[1748871547039,2.2708327,2517.2,2517.1,12.42400162]
[1748871547248,2.2708327,2517.2,2517.1,20.42400162]
[1748871549480,2.2708327,2517.2,2517.1,30.65858962]
[1748871549620,0.18461703,2517.2,2517.1,29.36741387]
[1748871550622,0.18461703,2517.2,2517.1,33.36741387]
[1748871551023,0.005,2518.4,2517.6,0.55]
[1748871551321,0.005,2518.4,2517.8,13.16342134]
[1748871551520,0.005,2518.4,2517.8,4.61342134]
[1748871551720,0.005,2518.4,2517.8,10.46212409]
[1748871552029,0.005,2518.4,2517.8,10.42242134]
[1748871552337,0.005,2518.4,2517.8,3.97172134]
[1748871552550,0.005,2518.4,2517.0,3.97289966]
[1748871552551,0.8282,2518.0,2517.2,3.97266804]
[1748871552755,0.8282,2518.0,2517.8,3.97172134]
[1748871553065,0.7997,2518.4,2517.8,8.46572134]
[1748871553579,0.03968449,2518.3,2517.6,1.32]
[1748871553783,3.97111498,2518.2,2517.7,3.97180279]
[1748871554075,0.03968449,2518.2,2517.6,5.29198989]
[1748871554227,0.03968449,2518.2,2517.6,5.29197667]
[1748871554574,0.7822,2517.8,2517.6,1.32]
[1748871554741,0.7822,2517.8,2517.6,5.29200841]
[1748871554937,0.7822,2517.8,2517.6,1.32]
[1748871555155,0.7822,2517.8,2517.4,8.46927193]
[1748871555342,0.7822,2517.8,2517.5,3.97210428]
[1748871555523,0.7822,2517.8,2517.5,4.01191228]
[1748871555753,0.7822,2517.8,2517.7,3.97187909]
[1748871555970,0.02,2517.9,2517.8,3.97172134]
[1748871557175,0.02,2517.9,2517.8,4.52172134]
[1748871557469,0.02,2517.9,2517.8,4.5614284]
[1748871557851,0.02,2517.9,2517.8,4.52172134]
[1748871558342,0.02,2517.9,2517.8,3.97172134]
[1748871558538,0.02,2517.9,2517.7,3.97179086]
[1748871558742,0.02,2517.9,2517.6,3.97203686]
[1748871558980,0.02,2517.9,2517.8,3.97172134]
[1748871559277,0.02,2517.9,2517.8,4.01143156]
[1748871559487,0.02,2517.9,2517.8,3.97172134]
[1748871559691,0.02,2517.9,2517.8,4.5614313]
[1748871559840,0.02,2517.9,2517.8,13.28212134]
[1748871560244,0.02,2517.9,2517.8,19.09012134]
[1748871560985,0.02,2517.9,2517.8,18.53912134]
[1748871561284,0.02,2517.9,2517.8,17.77872134]
[1748871561849,0.02,2517.9,2517.8,9.316]
[1748871562781,0.02,2517.9,2517.8,1.316]
[1748871563088,0.02,2517.9,2517.8,13.28772134]
[1748871564692,0.02,2517.9,2517.8,13.83772134]
[1748871565300,0.02,2517.9,2517.8,13.28772134]
[1748871565501,0.02,2517.9,2517.8,8.0]
[1748871565709,0.02,2517.9,2517.8,11.97172134]
[1748871566914,0.02,2517.9,2517.8,12.52172134]
[1748871567130,0.02,2517.9,2517.8,11.97172134]
[1748871567283,0.02,2517.9,2517.8,17.77272134]
[1748871567616,0.8312,2517.9,2517.8,1.316]
[1748871568118,0.8312,2517.9,2517.8,9.316]
[1748871568319,0.8312,2517.9,2517.8,1.316]
[1748871568830,1.31145857,2517.9,2517.5,3.97218794]
[1748871569026,4.01141996,2517.8,2517.4,4.481]
[1748871569535,0.03968449,2517.8,2517.4,8.45328467]
[1748871569694,4.01148494,2517.8,2517.2,14.2071299]
[1748871570032,0.03968449,2517.8,2517.4,3.97235242]
[1748871570214,0.50025857,2517.9,2517.8,3.97172134]
[1748871570215,0.02,2517.9,2517.8,3.97172134]
[1748871570415,0.02,2517.9,2517.8,18.68530934]
[1748871570614,0.02,2517.9,2517.8,8.45072134]
[1748871571924,0.02,2517.9,2517.8,18.68530934]
[1748871572315,0.02,2517.9,2517.8,4.473]
[1748871572500,0.02,2517.9,2517.8,16.44472134]
[1748871573531,0.7594,2518.3,2518.2,3.97109046]
[1748871573733,0.005,2518.4,2518.3,11.97093277]
[1748871573937,0.005,2518.7,2518.6,3.97045977]
[1748871574405,0.005,2518.7,2518.6,12.01015833]
[1748871574726,0.02,2518.9,2518.8,11.97014451]
[1748871574925,0.02,2518.9,2518.8,26.67473251]
[1748871575103,0.02,2518.9,2518.8,18.234588]
[1748871575895,0.02,2518.9,2518.8,22.20473251]
[1748871578031,0.02,2518.9,2518.8,18.234588]
[1748871578239,0.02,2518.9,2518.8,22.20473251]
[1748871578403,2.43107716,2519.3,2519.2,11.96951413]
[1748871578606,2.43107716,2519.3,2519.2,16.43351413]
[1748871580041,2.43107716,2519.3,2519.2,12.464]
[1748871580249,2.43107716,2519.3,2519.2,13.241]
[1748871580405,0.15620539,2519.8,2519.7,3.96872643]
[1748871580741,0.15620539,2519.8,2519.7,4.457]
[1748871581104,0.15620539,2519.8,2519.7,4.49668331]
[1748871581309,0.15620539,2519.8,2519.7,8.46540974]
[1748871581503,0.15620539,2519.8,2519.7,4.457]
[1748871581709,0.15620539,2519.8,2519.6,10.234588]
[1748871582019,4.75402643,2519.7,2519.6,10.234588]
[1748871582347,3.96891103,2519.6,2519.4,10.234588]
[1748871582648,1.71486469,2519.7,2519.4,10.234588]
[1748871582943,0.7853,2519.7,2519.5,8.0]
[1748871583157,0.15620539,2519.8,2519.6,4.455]
[1748871583338,0.02,2519.9,2519.8,3.96856893]
[1748871583546,0.02,2519.9,2519.8,13.28456893]
[1748871584433,0.02,2519.9,2519.8,11.96856893]
[1748871584632,0.02,2519.9,2519.8,16.42756893]
[1748871584954,0.8145,2519.8,2519.5,1.316]
[1748871585250,3.96872643,2519.7,2519.3,10.234588]
[1748871585449,3.96908211,2519.5,2519.3,10.234588]
[1748871585641,0.51800713,2519.6,2519.3,10.234588]
[1748871585840,0.03968449,2519.6,2519.3,10.234588]
[1748871586068,0.02,2519.9,2519.5,3.96904147]
[1748871586267,0.02,2519.9,2519.7,10.234588]
[1748871587017,0.02,2519.9,2519.7,14.20318974]
[1748871587238,0.02,2519.9,2519.7,10.234588]
[1748871587454,0.02,2519.9,2519.7,14.20324459]
[1748871587633,0.02,2519.9,2519.7,4.457]
[1748871588119,0.05968449,2519.9,2519.7,4.457]
[1748871588453,0.05968449,2519.9,2519.7,4.458]
[1748871588652,0.02,2519.9,2519.7,4.458]
[1748871588861,0.02,2519.9,2519.5,10.234588]
[1748871589060,0.02,2519.9,2519.6,4.455]
[1748871589538,0.50424395,2519.9,2519.5,10.234588]
[1748871589722,0.50424395,2519.9,2519.5,14.687588]
[1748871589922,0.02,2519.9,2519.8,14.20315693]
[1748871590117,0.02,2519.9,2519.8,22.20315693]
[1748871590835,0.02,2519.9,2519.8,18.234588]
[1748871591056,0.02,2519.9,2519.5,11.529588]
[1748871591373,0.8186,2519.8,2519.7,4.451]
[1748871591521,0.02,2519.9,2519.7,4.451]
[1748871591856,0.02,2519.9,2519.8,10.234588]
[1748871592216,0.02,2519.9,2519.8,14.684588]
[1748871592416,0.02,2519.9,2519.8,14.20315693]
[1748871592616,0.02,2519.9,2519.8,18.65315693]
[1748871592929,0.02,2519.9,2519.4,3.96915463]
[1748871593131,0.02,2519.9,2519.7,3.96858105]
[1748871593344,0.02,2519.9,2519.6,10.234588]
[1748871593641,0.02,2519.9,2519.4,11.96911403]
[1748871593842,0.50466252,2519.9,2519.5,4.449]
[1748871594029,4.47312891,2519.9,2519.5,8.0]
[1748871594232,0.03968449,2519.8,2519.4,11.96917587]
[1748871594427,0.03968449,2519.8,2519.5,4.447]
[1748871594778,4.00833031,2519.8,2519.5,4.447]
[1748871594925,0.49098377,2519.8,2519.5,4.446]
[1748871595120,4.74159662,2519.7,2519.4,8.0]
[1748871595323,3.96918244,2519.5,2519.3,1.295]
[1748871595569,0.03968449,2519.4,2519.3,1.295]
[1748871595722,4.7816835,2519.4,2519.3,1.295]
[1748871595923,1.68757108,2519.4,2519.3,1.295]
[1748871596225,0.7728,2519.4,2519.3,15.49894456]
[1748871596424,0.80568449,2519.7,2519.3,15.49884284]
[1748871596624,0.80568449,2519.7,2519.3,11.529588]
[1748871596865,0.80568449,2519.7,2519.3,15.49892778]
[1748871597075,0.766,2519.7,2519.3,11.529588]
[1748871597359,0.80568449,2519.7,2519.3,15.49890893]
[1748871597520,0.766,2519.7,2519.3,11.529588]
[1748871597923,0.766,2519.7,2519.4,8.40819901]
[1748871598122,0.766,2519.7,2519.4,4.439]
[1748871598343,0.02,2519.9,2519.6,3.96888394]
[1748871598548,0.05968449,2519.9,2519.5,3.96895357]
[1748871598755,0.05968449,2519.9,2519.5,3.96890455]
[1748871599260,0.05968449,2519.9,2519.4,8.40815713]
[1748871599462,0.05968449,2519.9,2519.6,3.96875487]
[1748871599656,0.02,2519.9,2519.7,3.96864979]
[1748871599841,0.02,2519.9,2519.5,8.0]
[1748871600041,0.02,2519.9,2519.7,3.96866387]
[1748871600268,0.02,2519.9,2519.3,3.9692451]
[1748871600463,0.02,2519.9,2519.1,10.234588]
[1748871600464,4.02814649,2519.9,2519.1,10.234588]
[1748871600666,0.7564,2519.8,2519.4,10.234588]
[1748871600995,0.02,2519.9,2519.8,11.96856893]
[1748871601138,0.02,2519.9,2519.8,17.69656893]
[1748871602050,0.02,2519.9,2519.8,19.06356893]
[1748871602255,0.005,2520.4,2520.3,3.96778161]
[1748871602470,0.005,2520.4,2520.3,27.50504185]
[1748871602663,0.005,2520.4,2520.3,27.46536961]
[1748871602876,0.005,2520.4,2520.3,17.71078161]
[1748871603451,0.005,2520.4,2520.0,4.78516932]
[1748871603681,0.7714,2520.3,2519.7,1.295]
[1748871603983,3.96657575,2521.1,2519.7,1.295]
[1748871604141,3.96772949,2520.4,2519.8,3.96854461]
[1748871604342,3.96823149,2520.1,2519.7,1.295]
[1748871604542,3.96801694,2520.2,2519.1,11.058488]
[1748871604739,3.9689853,2519.6,2519.0,3.96977636]
[1748871604978,3.96817785,2520.1,2518.9,1.295]
[1748871604979,3.96888068,2519.7,2518.9,1.295]
[1748871605181,0.39677295,2520.3,2519.4,10.234588]
[1748871605372,0.02,2520.9,2519.7,10.234588]
[1748871605568,3.96715198,2520.7,2519.3,1.295]
[1748871605783,3.96814815,2520.1,2519.3,1.295]
[1748871606078,3.9682117,2520.1,2519.3,5.26431394]
[1748871606287,3.96880023,2519.7,2519.3,1.295]
[1748871606590,0.38718714,2519.9,2518.9,3.96991537]
[1748871606791,4.476,2519.9,2518.6,1.33470046]
[1748871607079,0.4476,2519.8,2518.7,8.0]
[1748871607278,3.96944761,2519.3,2518.7,3.97027378]
[1748871607445,3.96904147,2519.5,2518.6,13.768]
[1748871607641,0.7784,2519.5,2518.7,0.0397011]
[1748871607979,0.7784,2519.5,2518.7,8.0]
[1748871608287,0.7784,2519.5,2518.0,3.97128771]
[1748871608288,0.8106,2518.9,2518.1,0.7987]
[1748871608592,0.8106,2518.5,2518.1,0.02]
[1748871608772,4.77789686,2518.8,2518.1,0.02]
[1748871609080,3.97062284,2518.5,2518.1,0.02]
[1748871609283,3.97086434,2518.4,2518.1,0.02]
[1748871609461,0.8077,2518.3,2518.1,0.02]
[1748871609969,4.7786403,2518.3,2518.1,0.02]
[1748871610172,3.97109046,2518.2,2518.1,0.02]
[1748871610467,0.8077,2518.3,2518.1,0.02]
[1748871610654,4.76294408,2518.6,2518.1,0.02]
[1748871610857,1.66572169,2518.6,2518.1,3.99120302]
[1748871611040,0.7924,2518.6,2518.1,0.02]
[1748871611246,0.7924,2518.6,2518.2,3.97104106]
[1748871611498,0.7776,2519.1,2518.4,10.234588]
[1748871611671,4.7472931,2519.1,2518.4,8.0]
[1748871611981,0.7776,2519.1,2518.6,3.97038434]
[1748871612186,0.7776,2519.1,2518.5,0.03970508]
[1748871612399,3.96998689,2518.9,2518.3,8.0]
[1748871612554,5.22208127,2519.1,2518.5,3.97056588]
[1748871612756,0.7776,2519.1,2518.5,8.0]
[1748871612956,0.7776,2519.1,2518.5,8.03970328]
[1748871613192,4.498,2519.7,2518.5,8.0]
[1748871613397,0.807,2519.3,2518.8,3.97014451]
[1748871613569,0.807,2519.3,2519.0,3.96974572]
[1748871613900,0.807,2519.3,2518.4,8.0]
[1748871614302,3.96951413,2519.2,2518.3,1.295]
[1748871614460,3.96998689,2518.9,2518.3,9.295]
[1748871614793,0.7784,2518.9,2518.3,1.295]
[1748871615100,3.97056872,2518.6,2518.1,0.02]
[1748871615256,3.97024593,2518.8,2518.1,0.02]
[1748871615601,3.97021768,2518.8,2518.2,3.97097671]
[1748871615761,4.74842955,2518.9,2518.3,3.97091378]
[1748871615957,0.824,2518.2,2518.1,0.02]
[1748871616403,4.79509046,2518.2,2518.1,0.02]
[1748871617169,0.7769,2518.1,2517.1,0.02]
[1748871617399,3.97258685,2517.3,2517.1,0.02]
[1748871617703,0.7631,2517.2,2517.1,0.02]
[1748871617998,4.73576804,2517.2,2517.1,0.02]
[1748871618204,5.39362181,2517.2,2517.1,0.02]
[1748871618667,1.42095377,2517.2,2517.1,0.02]
[1748871618870,0.7631,2517.2,2517.1,0.02]
[1748871619090,4.73576804,2517.2,2517.1,0.02]
[1748871619494,3.97266804,2517.2,2517.1,0.02]
[1748871619703,4.80386804,2517.2,2517.1,0.02]
[1748871619953,4.80386804,2517.2,2516.1,0.02]
[1748871619954,3.97424688,2516.2,2516.1,0.02]
[1748871620244,4.84712227,2516.2,2516.1,0.02]
[1748871620442,5.65172227,2516.2,2516.1,0.02]
[1748871620601,0.8046,2516.1,2515.1,0.02]
[1748871620937,3.97456279,2516.0,2515.1,0.02]
[1748871621098,3.97551766,2515.4,2515.1,0.02]
[1748871621300,3.97582444,2515.3,2515.1,0.02]
[1748871621522,3.97582697,2515.2,2515.1,0.02]
[1748871621733,4.77422697,2515.2,2515.1,0.02]
[1748871622399,0.7984,2515.2,2515.1,0.02]
[1748871622942,4.77422697,2515.2,2515.1,0.02]
[1748871623125,0.7984,2515.2,2515.1,0.02]
[1748871624302,1.27581805,2515.2,2515.1,0.02]
[1748871624540,0.8118,2515.7,2515.1,0.02]
[1748871624726,0.8118,2515.7,2515.2,3.97573307]
[1748871625037,0.8118,2516.2,2515.4,8.0]
[1748871625211,0.8118,2516.2,2515.6,8.0]
[1748871625542,0.8118,2516.2,2515.1,1.344]
[1748871625711,3.9751668,2515.7,2515.1,11.9959839]
[1748871625913,0.8258,2515.5,2515.1,11.99597331]
[1748871626113,0.8258,2515.5,2515.1,8.02]
[1748871626320,3.97563987,2515.4,2515.1,0.02]
[1748871626734,0.8258,2515.5,2515.1,0.02]
[1748871627041,3.97558856,2515.4,2515.1,0.02]
[1748871627242,3.97582697,2515.2,2515.1,0.02]
[1748871627540,4.80642697,2515.2,2515.1,0.02]
[1748871631103,0.8306,2515.2,2515.1,0.02]
[1748871632159,4.80642697,2515.2,2515.1,0.02]
[1748871632305,0.8306,2515.2,2515.1,0.02]
[1748871633361,5.2870391,2515.2,2515.1,0.02]
[1748871633723,1.31121213,2515.2,2515.1,0.02]
[1748871633940,0.8306,2515.2,2515.1,0.02]
[1748871634243,4.52422943,2516.3,2515.1,0.02]
[1748871634244,0.7632,2515.6,2515.1,3.99582798]
[1748871634443,0.7632,2515.6,2515.3,10.234588]
[1748871634871,0.7632,2515.6,2515.3,11.558588]
[1748871635337,3.97536911,2515.5,2515.3,11.558588]
[1748871635538,3.97543889,2515.5,2515.3,11.558588]
[1748871635740,3.97552269,2515.4,2515.2,1.324]
[1748871635943,0.7632,2515.6,2515.2,1.324]
[1748871635944,0.7632,2515.6,2515.2,11.558588]
[1748871636145,0.7808,2516.0,2515.5,10.234588]
[1748871636473,3.97345801,2516.7,2515.9,10.234588]
[1748871636674,0.40410424,2517.1,2516.2,10.234588]
[1748871636974,4.75362236,2517.2,2516.8,10.234588]
[1748871637175,3.9735416,2516.7,2516.3,4.531]
[1748871637317,0.87261576,2517.1,2516.4,5.855]
[1748871637318,3.97336468,2516.8,2516.4,5.855]
[1748871637630,4.84547074,2517.1,2516.6,10.234588]
[1748871637955,0.7808,2517.2,2516.4,1.324]
[1748871638131,3.97335867,2516.8,2516.4,5.86]
[1748871638334,3.97308023,2517.0,2516.4,5.86]
[1748871638335,3.97321002,2516.9,2516.4,5.86]
[1748871638844,0.7808,2517.2,2516.3,10.234588]
[1748871639045,0.7825,2516.6,2516.2,1.324]
[1748871639356,0.7825,2516.9,2516.5,3.97362938]
[1748871639658,0.7825,2516.9,2516.4,8.0]
[1748871639960,3.97285165,2517.1,2516.5,3.9736923]
[1748871640156,0.7825,2517.2,2516.4,8.0]
[1748871640330,3.97282587,2517.1,2516.4,18.234588]
[1748871640661,1.25798731,2517.2,2516.4,22.20841517]
[1748871640662,3.97299857,2517.0,2516.4,22.20841517]
[1748871640815,5.23067902,2517.2,2516.4,22.20841517]
[1748871640816,0.7825,2517.2,2516.7,10.234588]
[1748871641170,3.97289856,2517.1,2516.8,4.528]
[1748871641366,0.7825,2517.2,2516.5,0.783]
[1748871641654,3.9719002,2517.7,2516.5,1.324]
[1748871641655,4.80571519,2516.6,2516.5,1.324]
[1748871641852,0.8321,2516.6,2516.5,1.324]
[1748871642058,3.97482986,2515.9,2515.6,1.324]
[1748871642262,4.8057669,2516.6,2515.6,1.324]
[1748871642462,3.97503676,2515.7,2515.6,1.324]
[1748871643458,4.79675071,2515.8,2515.6,1.324]
[1748871643649,3.97503676,2515.7,2515.6,1.324]
[1748871643851,4.79675903,2515.8,2515.6,1.324]
[1748871644046,0.8218,2515.8,2515.6,1.324]
[1748871644460,3.97459211,2516.0,2515.6,1.324]
[1748871644665,0.7861,2516.2,2515.6,1.324]
[1748871644826,4.7603876,2516.2,2515.6,1.324]
[1748871645027,5.23645309,2516.2,2515.7,5.846]
[1748871645370,3.97441637,2516.1,2515.7,5.846]
[1748871645566,5.23638902,2516.2,2515.7,5.846]
[1748871645865,5.23638902,2516.2,2515.7,4.522]
[1748871645866,3.97473459,2515.9,2515.7,4.522]
[1748871646029,1.26213876,2516.2,2515.7,5.848]
[1748871646232,3.97474377,2515.9,2515.7,5.848]
[1748871646564,3.97474377,2515.9,2515.1,0.02]
[1748871646565,3.9755872,2515.4,2515.1,0.02]
[1748871646724,3.97582697,2515.2,2515.1,0.02]
[1748871647163,4.73872697,2515.2,2515.1,0.02]
[1748871647742,0.7629,2515.2,2515.1,0.02]
[1748871647972,4.73872697,2515.2,2515.1,0.02]
[1748871648331,5.610167,2515.2,2515.1,0.02]
[1748871650336,4.73872697,2515.2,2515.1,0.02]
[1748871650531,3.97567328,2515.3,2515.1,0.02]
[1748871650532,3.97577499,2515.3,2515.1,0.02]
[1748871650845,3.97582697,2515.2,2515.1,0.02]
[1748871651669,4.73242697,2515.2,2515.1,0.02]
[1748871653371,9.25042697,2515.2,2515.1,0.02]
[1748871653532,11.59649592,2515.2,2515.1,0.02]
[1748871654770,7.07849592,2515.2,2515.1,0.02]
[1748871655130,4.73242697,2515.2,2515.1,0.02]
[1748871655332,15.51701497,2515.2,2515.1,0.02]
[1748871655534,25.51701497,2515.2,2515.1,0.02]
[1748871655850,33.51701497,2515.2,2515.1,0.02]
[1748871656170,3.97740832,2514.2,2514.1,0.02]
[1748871657970,4.75055351,2514.7,2514.1,0.02]
[1748871658247,0.47505535,2514.6,2514.1,0.02]
[1748871658572,3.97720138,2514.4,2514.1,0.02]
[1748871658762,0.7739,2514.7,2514.1,0.02]